[Event "ChessKid Cup Div-II 2023"]
[Site "Online"]
[Date "2023.05.25"]
[Round "54.1"]
[White "Oparin, Grigoriy"]
[Black "Andreikin, Dmitry"]
[Result "0-1"]
[ECO "C15"]
[WhiteElo "2667"]
[BlackElo "2729"]
[Annotator "TA"]
[PlyCount "96"]
[EventDate "2023.05.21"]
[EventType "k.o."]
[EventCountry "NET"]
[SourceTitle "playchess.com"]
[Source "ChessBase"]
[SourceQuality "1"]
[TimeControl "900+3"]

{[%evp 11,96,23,11,14,53,62,51,60,40,0,3,0,9,12,75,0,0,-34,-17,-61,-12,-65,-73,-50,-26,-31,0,0,0,0,0,0,0,-12,-12,-11,-18,-31,0,-80,88,58,66,0,165,165,165,165,165,165,165,165,165,43,43,43,43,19,19,0,0,0,0,0,0,0,0,0,0,0,0,0,0,0,0,-29977,-29978,-29978,-29979,-29981,-29982,-29982,-29983,-29983,-29984,-29984,-29985]} 1. e4 {[%emt 0:00:03]} e6 {[%emt 0:00:12]} 2. d4 {[%emt 0:00:02]} d5 {[%emt 0:00:01]} 3. Nc3 {[%emt 0:00:00]} Bb4 {[%emt 0:00:04]} 4. Nge2 {[%emt 0:00:01]} Nc6 {[%emt 0:00:20]} 5. a3 {[%emt 0:00:02]} Ba5 {[%emt 0:00:01]} 6. b4 {[%emt 0:00:04]} Bb6 {[%emt 0:00:01]} 7. Bb2 {[%emt 0:00:03] C15: French: 3 Nc3 Bb4: Unusual White 4th moves.} Nf6 {[%emt 0:00:13]} 8. e5 $1 {[%emt 0:00:25]} Nd7 {[%emt 0:00:29]} 9. Na4 {[%emt 0:00:15] White is slightly better.} O-O {[%emt 0:00:12] [#]} 10. Qd2 $146 {[%emt 0:00:43]} ({Predecessor:} 10. f4 f6 11. g3 fxe5 12. dxe5 a5 13. b5 Ne7 14. c4 c6 15. Nd4 Bxd4 16. Bxd4 {½-½ Alexakis,D (2484)-Sharavdorj,D (2382) Belgrade Summer GM 4th 2022 (5)}) 10... f6 {[%emt 0:00:16][%cal Rf6e5]} 11. f4 {[%emt 0:00:01]} a5 {[%emt 0:01:57]} 12. b5 $1 {[%emt 0:00:03]} Na7 {[%emt 0:00:00]} (12... Ne7 $11 {keeps the balance.}) 13. Ng3 {[%emt 0:00:26]} (13. Nec3 $16) 13... fxe5 $11 {[%emt 0:00:25]} 14. fxe5 {[%emt 0:00:01]} c6 $1 {[%emt 0:01:08]} 15. c4 {[%emt 0:00:28] Hoping for c5.} Bc7 {[%emt 0:01:57]} (15... Qh4 $15 {is more appropriate.}) 16. cxd5 {[%emt 0:00:28]} (16. O-O-O $11) 16... exd5 $15 {[%emt 0:00:19]} 17. bxc6 {[%emt 0:00:26]} bxc6 {[%emt 0:00:00]} (17... Nxc6 $5 {[%cal Rd7b6]} 18. O-O-O Nb6 $11) 18. Bd3 {[%emt 0:00:00]} Qh4 {[%emt 0:00:37]} 19. O-O-O $1 {[%emt 0:00:19]} Nxe5 {[%emt 0:00:07]} 20. dxe5 {[%emt 0:00:11][%cal Oh1f1] aiming for Rhf1!} Qxa4 {[%emt 0:00:00]} 21. Rhf1 $36 {[%emt 0:00:31][%mdl 2048] White has some pressure.} Bg4 {[%emt 0:00:57] The board is on fire.} 22. Nf5 {[%emt 0:00:07]} Bxf5 {[%emt 0:01:11]} (22... Bxd1 $2 23. Qg5 Qg4 24. Nh6+ Kh8 25. Rxf8+ Rxf8 26. Nxg4 $18) 23. Rxf5 {[%emt 0:00:05]} Rxf5 {[%emt 0:00:17]} 24. Bxf5 {[%emt 0:00:01]} Rb8 {[%emt 0:00:02] ...Qc4+ is the strong threat.} 25. Re1 {[%emt 0:00:58] [#]} (25. g3 $11) 25... Rxb2 $2 {[%emt 0:02:48]} 26. Kxb2 $16 {[%emt 0:00:03] And now Qf2 would win.} ({Reject} 26. Be6+ $6 Kh8 27. Kxb2 (27. Qxb2 Nb5 $17) 27... Nb5 $11) 26... Nb5 {[%emt 0:00:01] Black is weak on the light squares} 27. Qd3 {[%emt 0:01:31]} Qf4 $2 {[%emt 0:00:01]} (27... g6 $1 $11 {and Black is okay.} 28. Be6+ Kg7) 28. Bxh7+ $18 {[%emt 0:01:42]} Kh8 {[%emt 0:00:03] Strongly threatening ...Qf2+.} 29. Qe3 {[%emt 0:00:01] Dodges Qf2+} Qxe3 {[%emt 0:02:30]} (29... Qxh2 $2 30. Bd3 Qh4 31. e6 $18) 30. Rxe3 {[%emt 0:00:01]} Kxh7 {[%emt 0:00:04]} 31. a4 $1 {[%emt 0:00:00]} d4 {[%emt 0:00:11]} (31... Nd4 $2 32. e6 Nf5 33. e7 Nxe7 34. Rxe7 Bxh2 35. Ra7 $18) 32. Rh3+ {[%emt 0:00:05]} ({White has to play} 32. Re1 $1 $18 Kg8 33. axb5 cxb5 34. e6) 32... Kg6 $14 {[%emt 0:00:01]} 33. axb5 {[%emt 0:00:01]} cxb5 {[%emt 0:00:01][%cal Bc6b5,Bb5b4,Bb4b3,Bb3b2][%mdl 4128] Endgame KR-KB} 34. Rg3+ {[%emt 0:00:25]} (34. e6 {seems wilder.} Kf6 35. Rh5 b4 36. Rb5) 34... Kf5 {[%emt 0:00:09]} 35. Rxg7 {[%emt 0:00:13]} (35. e6 $5 Kxe6 36. Rxg7 Bxh2 37. Rb7 $14) 35... Bxe5 {[%emt 0:00:01]} 36. Rb7 {[%emt 0:00:04]} d3+ {[%emt 0:00:03]} 37. Kc1 {[%emt 0:00:03]} b4 {[%emt 0:00:01]} 38. Rb5 {[%emt 0:00:10]} Ke4 {[%emt 0:00:07]} 39. Rxa5 {[%emt 0:00:04]} b3 {[%emt 0:00:07]} 40. Rb5 {[%emt 0:00:07]} b2+ $1 {[%emt 0:00:03]} 41. Kd2 {[%emt 0:00:05]} Bf4+ {[%emt 0:00:01]} 42. Kd1 {[%emt 0:00:01]} (42. Ke1 $5 Be5 $8 43. Kd2 Bf4+ 44. Ke1 $11) 42... Be5 {[%emt 0:00:04] ( -> ...Bc3)} 43. h4 $2 {[%emt 0:00:04][%mdl 8192]} (43. Kd2 $11 Bf4+ 44. Ke1) 43... Bc3 {[%emt 0:00:01] Black mates.} 44. h5 {[%emt 0:03:40]} Kd4 $1 {[%emt 0:00:02]} 45. g4 {[%emt 0:00:02] [#]} Kc4 $1 {[%emt 0:00:01]} 46. Rxb2 {[%emt 0:00:01]} Bxb2 {[%emt 0:00:00]} 47. g5 {[%emt 0:00:01]} Be5 {[%emt 0:00:02]} 48. h6 {[%emt 0:00:01] [#]} Bf4 $1 {[%emt 0:00:01][%mdl 64] Deflection. Quite a comeback for Black.   Weighted Error Value: White=0.27 (precise) /Black=0.20 (precise)} 0-1

[Event "ChessKid Cup Div-II 2023"]
[Site "Online"]
[Date "2023.05.25"]
[Round "54.1"]
[White "Sadhwani, Raunak"]
[Black "Mamedyarov, Shakhriyar"]
[Result "1/2-1/2"]
[ECO "C54"]
[WhiteElo "2627"]
[BlackElo "2738"]
[Annotator "TA"]
[PlyCount "45"]
[EventDate "2023.05.21"]
[EventType "k.o."]
[EventCountry "NET"]
[SourceTitle "playchess.com"]
[Source "ChessBase"]
[SourceQuality "1"]
[TimeControl "900+3"]

{[%evp 10,45,12,10,15,14,26,18,14,15,31,31,35,22,29,0,18,20,22,24,22,7,9,11,25,8,26,0,0,0,0,-5,-14,-33,-41,-50,-45,-42]} 1. e4 {[%emt 0:00:05]} e5 {[%emt 0:00:06]} 2. Nf3 {[%emt 0:00:01]} Nc6 {[%emt 0:00:01]} 3. Bc4 {[%emt 0:00:00]} Bc5 {[%emt 0:00:03]} 4. d3 {[%emt 0:00:01]} Nf6 {[%emt 0:00:01]} 5. O-O {[%emt 0:00:03]} d6 {[%emt 0:00:04]} 6. c3 {[%emt 0:00:02]} a5 {[%emt 0:00:05] seems to push 6...0-0 aside. C54: Giuoco Piano: 4 c3 Nf6, main lines with 5 d4 and 5 d3.} 7. Re1 {[%emt 0:00:25]} Ba7 {[%emt 0:00:17]} 8. Nbd2 {[%emt 0:00:17]} O-O {[%emt 0:00:06] The position is equal.} 9. Nf1 {[%emt 0:00:05]} Ne7 {[%emt 0:00:05]} 10. Bb3 {[%emt 0:00:30]} Ng6 {[%emt 0:00:05]} 11. h3 {[%emt 0:00:01]} Be6 {[%emt 0:00:33]} 12. Be3 {[%emt 0:00:18] [#]} Re8 $146 {[%emt 0:00:50]} ({Predecessor:} 12... c6 13. Ng3 Qc7 14. Qe2 b5 15. d4 Rfe8 16. Bc2 Rad8 17. b3 Bb8 18. Rad1 d5 {½-½ Mulligan,S (1986)-Shafi,D (2013) Glorney Cup Cardiff 2017 (4.11)}) 13. Bxa7 {[%emt 0:00:44]} Rxa7 {[%emt 0:00:03]} 14. Bxe6 {[%emt 0:00:04]} Rxe6 {[%emt 0:00:04]} 15. g3 {[%emt 0:00:01]} a4 {[%emt 0:00:57]} 16. Ne3 {[%emt 0:00:13]} b5 {[%emt 0:00:22][%cal Bb7b5,Bb5b4,Bb4b3][%mdl 32]} 17. Qc2 {[%emt 0:00:02]} c5 {[%emt 0:00:38]} 18. c4 {[%emt 0:00:23]} (18. b3 $5 {[%cal Rb3a4]}) 18... b4 {[%emt 0:00:15]} 19. a3 {[%emt 0:00:01] [#] axb4 would be deadly.} b3 {[%emt 0:00:13]} 20. Qe2 {[%emt 0:00:01]} Re8 {[%emt 0:00:41]} 21. h4 {[%emt 0:00:04]} Nf8 {[%emt 0:00:21]} 22. Nd5 {[%emt 0:00:11]} Ne6 {[%emt 0:00:08]} 23. Qd2 {[%emt 0:00:08] Weighted Error Value: White=0.07 (flawless) /Black=0.06 (flawless)} 1/2-1/2

[Event "ChessKid Cup Div-II 2023"]
[Site "Online"]
[Date "2023.05.25"]
[Round "54.2"]
[White "Mamedyarov, Shakhriyar"]
[Black "Sadhwani, Raunak"]
[Result "1/2-1/2"]
[ECO "D38"]
[WhiteElo "2738"]
[BlackElo "2627"]
[Annotator "TA"]
[PlyCount "134"]
[EventDate "2023.05.21"]
[EventType "k.o."]
[EventCountry "NET"]
[SourceTitle "playchess.com"]
[Source "ChessBase"]
[SourceQuality "1"]
[TimeControl "900+3"]

{[%evp 9,134,17,31,0,0,0,0,-50,41,33,31,41,66,25,66,64,75,79,77,76,77,70,70,72,97,95,94,74,85,72,129,123,149,129,123,104,188,187,191,190,181,159,187,183,177,178,222,217,245,215,247,200,205,185,237,237,242,216,212,211,218,207,214,215,218,218,210,208,209,218,210,130,129,109,94,87,262,233,254,176,214,85,82,78,79,-8,-8,-8,-8,-8,8,0,231,224,183,86,82,43,101,81,411,404,404,396,382,308,409,210,11157,10052,1048,8,29981,29969,29968,29970,29970,29971,29974,32,37,0,29974,0,45,0,5082]} 1. d4 {[%emt 0:00:03]} Nf6 {[%emt 0:00:04]} 2. c4 {[%emt 0:00:02]} e6 {[%emt 0:00:00]} 3. Nc3 {[%emt 0:00:01]} Bb4 {[%emt 0:00:01]} 4. Nf3 {[%emt 0:00:04]} d5 {[%emt 0:00:03]} 5. cxd5 {[%emt 0:00:06]} exd5 {[%emt 0:00:04]} 6. Bf4 {[%emt 0:00:01] D38: Queen's Gambit Declined: Ragozin Defence (4 Nf3 Bb4).} Ne4 {[%emt 0:00:31] is cutting edge theory.} 7. Rc1 {[%emt 0:00:02]} Nc6 {[%emt 0:01:06]} 8. e3 {[%emt 0:00:04]} (8. Nd2 $11) 8... Bf5 {[%emt 0:00:17]} ({Better is} 8... g5 $1 $15 9. Bg3 h5) 9. Bd3 $1 $14 {[%emt 0:00:33]} O-O {[%emt 0:00:06]} 10. O-O {[%emt 0:00:01]} Re8 {[%emt 0:01:12] [#]} 11. Qc2 $146 {[%emt 0:00:42]} ({Predecessor:} 11. Bb5 Bxc3 12. bxc3 Re6 13. c4 dxc4 14. d5 Rg6 15. dxc6 bxc6 16. Qxd8+ Rxd8 17. Bxc4 Bh3 18. Bg3 Bg4 19. Ne5 Rg5 20. Nxg4 Rxg4 21. Bxc7 Rd7 22. f3 {1-0 Injac,T (2290)-Sailer,M (2109) Titled Tuesday intern op 29th Dec blitz 2020 (2)}) 11... Bg6 {[%emt 0:01:21]} 12. Rfd1 {[%emt 0:00:31]} Nxc3 {[%emt 0:00:58]} 13. bxc3 {[%emt 0:00:04] Black must now prevent Bxg6.} Bd6 {[%emt 0:00:01]} 14. Bxg6 {[%emt 0:00:27]} hxg6 {[%emt 0:00:02]} 15. Bxd6 {[%emt 0:00:00]} Qxd6 {[%emt 0:00:04]} 16. c4 {[%emt 0:00:01]} dxc4 {[%emt 0:00:24]} 17. Qxc4 {[%emt 0:00:00]} Re7 {[%emt 0:00:00]} 18. Qb5 {[%emt 0:00:42]} (18. Ng5 {feels hotter.} Qf6 19. Qb5 Rf8 20. Nf3) 18... Nd8 {[%emt 0:00:05]} 19. d5 {[%emt 0:00:23]} Rd7 {[%emt 0:01:24]} (19... c6 $142 20. dxc6 {[%mdl 64] Discovered Attack} bxc6) 20. Qa4 $16 {[%emt 0:01:33] White is much more active. The black rooks are badly placed.} Re7 {[%emt 0:00:36]} 21. Qc4 {[%emt 0:00:41]} a6 {[%emt 0:00:17]} 22. Ng5 {[%emt 0:00:18][%cal Bf3g5,Bg5e4,Be4d6,Bd6c4,Bc4a5,Ba5b3,Bb3c5][%mdl 32] And now Qh4 would win.} f6 {[%emt 0:01:10]} (22... Re5 $16) 23. Ne4 $36 {[%emt 0:00:11][%mdl 2048] Black is under strong pressure.} b5 {[%emt 0:00:01]} 24. Nxd6 {[%emt 0:00:26]} bxc4 {[%emt 0:00:00]} 25. Nxc4 {[%emt 0:00:01]} Rd7 {[%emt 0:00:01]} 26. Na5 {[%emt 0:00:56]} Rb8 {[%emt 0:00:02]} 27. Nb3 {[%emt 0:00:16]} c6 {[%emt 0:00:18]} 28. d6 {[%emt 0:00:16]} (28. dxc6 $6 Rxd1+ 29. Rxd1 Nxc6 $16) 28... Kf7 {[%emt 0:00:22]} 29. h4 {[%emt 0:00:22]} Ra7 {[%emt 0:00:26]} 30. Rc4 {[%emt 0:00:28]} a5 {[%emt 0:00:03]} 31. Nc5 {[%emt 0:01:18]} Rb2 {[%emt 0:00:16]} (31... Rb4 $142 32. Rcd4 Rb2) 32. a3 {[%emt 0:00:08]} Rb5 {[%emt 0:00:10]} 33. d7 {[%emt 0:00:18]} a4 {[%emt 0:00:28]} 34. g3 {[%emt 0:00:49]} (34. Rxa4 $6 Raa5 $16) 34... Raa5 {[%emt 0:01:03]} 35. Rdc1 {[%emt 0:00:17]} (35. Nxa4 Rd5 36. Rdd4 Ke6 37. Re4+ Re5) 35... Ke7 {[%emt 0:00:48]} 36. Kg2 {[%emt 0:00:08]} Kd6 {[%emt 0:00:06][%cal Rb5c5]} 37. Rd1+ {[%emt 0:00:59]} Kc7 {[%emt 0:00:03]} 38. Nxa4 {[%emt 0:00:02]} Rd5 {[%emt 0:00:20]} 39. Rxd5 {[%emt 0:00:38]} Rxd5 {[%emt 0:00:00][%mdl 4096] Endgame KRN-KRN} 40. Rd4 {[%emt 0:01:09] Hoping for Rxd5.} (40. Nc5 Kb6 $16) 40... Ra5 {[%emt 0:00:13]} 41. Rg4 {[%emt 0:00:59]} Ne6 {[%emt 0:00:35]} 42. Nb2 {[%emt 0:00:19]} (42. Re4 {simplifies} Kxd7 43. Nb6+ Ke7 44. Rc4) 42... Nf8 $2 {[%emt 0:00:32]} (42... Rxa3 $16 43. Rxg6 Kxd7) 43. Ra4 $1 {[%emt 0:00:07]} (43. Nc4 Ra6 44. Kf3 c5 $16) 43... Rxa4 {[%emt 0:00:15]} 44. Nxa4 {[%emt 0:00:00]} Nxd7 {[%emt 0:00:00] KN-KN} 45. Kf3 {[%emt 0:00:00]} (45. e4 $18) 45... Ne5+ $16 {[%emt 0:00:04]} 46. Ke4 {[%emt 0:00:20] aiming for Nc5.} Nc4 {[%emt 0:00:00] [#]} 47. h5 {[%emt 0:00:20]} Nd6+ $11 {[%emt 0:00:26]} 48. Kf3 {[%emt 0:00:09] Threatens to win with Nc5.} gxh5 {[%emt 0:00:00]} 49. Nc5 {[%emt 0:00:03] Strongly threatening Ne6+.} g5 {[%emt 0:00:22]} (49... Kb6 $5 {[%cal Rb6c5]} 50. Ne6 g5 $11) 50. a4 {[%emt 0:00:01]} Nb7 $2 {[%emt 0:00:25]} (50... Nf7 $11) 51. Ne4 $18 {[%emt 0:00:02]} h4 {[%emt 0:00:10][%cal Og5g4]} 52. gxh4 {[%emt 0:00:04]} (52. Nxf6 $18 {and the rest is easy. Ne4 is the strong threat.} Nc5 53. a5) 52... gxh4 $16 {[%emt 0:00:00]} 53. Nxf6 {[%emt 0:00:00]} Kb6 {[%emt 0:00:00]} (53... c5 $14) 54. Kg4 {[%emt 0:00:04][%cal Of2f4]} Ka5 $2 {[%emt 0:00:01][%mdl 8192]} (54... c5 $16 {is a better chance.}) 55. e4 $18 {[%emt 0:00:04]} (55. Kxh4 c5 $16) 55... Kxa4 {[%emt 0:00:00]} 56. e5 {[%emt 0:00:02]} (56. Kxh4 c5 57. e5 Kb4 $18) 56... c5 {[%emt 0:00:13]} 57. f4 {[%emt 0:00:02][%cal Bf2f4,Bf4f5,Bf5f6][%mdl 32] Intending f5! and mate.} (57. Kxh4 Kb4 58. e6 Nd6 $16) 57... c4 {[%emt 0:00:01]} 58. Ne4 {[%emt 0:00:02]} (58. Kxh4 c3 59. Ne4 c2 60. Nc3+ Kb4 $11) (58. Nd5 $142 {[%cal Of4f5] f5! would kill now.} Kb3 59. f5) 58... Kb5 $2 {[%emt 0:00:05]} (58... h3 59. Kxh3 Kb4) 59. f5 {[%emt 0:00:01][%cal Oe5e6] White threatens e6! and mate.} Kc6 {[%emt 0:00:08]} 60. e6 $2 {[%emt 0:00:05]} (60. Nc3 $18 Nd8 61. Kxh4) 60... Nd6 $2 {[%emt 0:00:07][%mdl 8192] [#]} (60... h3 $11 61. Kxh3 Nd6) 61. e7 $1 {[%emt 0:00:04]} Ne8 {[%emt 0:00:11]} 62. f6 $1 {[%emt 0:00:00]} (62. Kxh4 Kd7 $11) 62... Kd7 {[%emt 0:00:01]} 63. Kf5 {[%emt 0:00:16]} (63. Kxh4 Nxf6 64. Nxf6+ Kxe7 $11) 63... h3 {[%emt 0:00:04] [#]} 64. Nc5+ $2 {[%emt 0:00:03]} (64. Ke5 $1 h2 65. Nc5+ Kc7 66. Ne6+ (66. f7 h1=Q $11) 66... Kd7 67. Nf8+ Kc7 68. f7 Ng7 69. Ne6+ (69. e8=R h1=Q $17) (69. e8=Q Nxe8 70. fxe8=Q h1=Q $16) (69. e8=N+ Kd8 $11) 69... Kb6 70. f8=Q (70. e8=B h1=Q $11)) 64... Kd6 $14 {[%emt 0:00:01]} 65. Ne4+ $2 {[%emt 0:00:00][%mdl 8192]} (65. Nb7+ $14 Kd7 66. Nc5+ Kd6 67. Ne4+ Kd7 68. Ke5) 65... Kd7 {[%emt 0:00:01] [#]} 66. Nc5+ $2 {[%emt 0:00:02]} (66. Ke5 $1 {mates} h2 67. Nc5+ Kc7 68. Ne6+ (68. f7 h1=Q $11) 68... Kc6 69. f7 Kd7 70. Ng7 {[%mdl 64] Promotion} (70. f8=B $2 {perishes.} h1=Q $19) 70... Nxg7 71. f8=Q (71. f8=R $2 h1=Q $19)) 66... Kd6 {[%emt 0:00:04]} 67. Ne4+ $2 {[%emt 0:00:01][%mdl 8192]} (67. Nb7+ $14 Kd7 68. Nc5+) 67... Kd7 {[%emt 0:00:00][%mdl 32768] Weighted Error Value: White=0.31/Black=0.41. An unexpected result.} 1/2-1/2

[Event "ChessKid Cup Div-II 2023"]
[Site "Online"]
[Date "2023.05.25"]
[Round "54.2"]
[White "Andreikin, Dmitry"]
[Black "Oparin, Grigoriy"]
[Result "1/2-1/2"]
[ECO "A80"]
[WhiteElo "2729"]
[BlackElo "2667"]
[Annotator "TA"]
[PlyCount "50"]
[EventDate "2023.05.21"]
[EventType "k.o."]
[EventCountry "NET"]
[SourceTitle "playchess.com"]
[Source "ChessBase"]
[SourceQuality "1"]
[TimeControl "900+3"]

{[%evp 9,50,31,44,33,59,61,55,51,66,75,81,71,88,66,83,72,97,0,89,95,98,94,83,95,93,92,110,81,108,93,150,109,271,232,329,327,331,319,320,309,333,342,330]} 1. d4 {[%emt 0:00:04]} f5 {[%emt 0:00:08]} 2. Nf3 {[%emt 0:00:12]} Nf6 {[%emt 0:00:02]} 3. Bg5 {[%emt 0:00:13]} e6 {[%emt 0:00:06]} 4. Nbd2 {[%emt 0:00:03]} d5 {[%emt 0:00:09]} 5. e3 {[%emt 0:00:03]} Nbd7 {[%emt 0:00:05]} 6. c4 {[%emt 0:00:12] A80: Dutch Defence: Unusual White second moves.} c6 {[%emt 0:00:08]} 7. Bd3 {[%emt 0:00:21] [#]} h6 $146 {[%emt 0:00:05]} ({Predecessor:} 7... Bd6 8. O-O O-O 9. cxd5 cxd5 10. Bf4 Qc7 11. Rc1 Qb8 12. Bxd6 Qxd6 13. Qc2 Ne4 {½-½ Bianco,V (2008)-Stefansson,V (2291) Douglas IoM op 2018 (7)}) 8. Bf4 {[%emt 0:00:09][%cal Bg5f4,Bf4g3,Bg3d6][%mdl 32] White is slightly better.} g5 {[%emt 0:00:31] [#] Wards off Nh4. aiming for ...dxc4.} 9. Bg3 $1 {[%emt 0:00:07]} Bg7 {[%emt 0:00:37]} 10. cxd5 {[%emt 0:00:09] White is more active.} Nxd5 {[%emt 0:00:05]} 11. Bd6 {[%emt 0:00:46]} N7f6 {[%emt 0:01:46]} 12. Ba3 {[%emt 0:00:58]} a5 {[%emt 0:00:03]} 13. Qb3 {[%emt 0:02:00] Dodges Nb4} (13. Ne5 $16) 13... Nb4 {[%emt 0:00:43]} 14. Bxb4 $16 {[%emt 0:00:03]} axb4 {[%emt 0:00:00]} 15. Qxb4 {[%emt 0:00:01]} Nd5 {[%emt 0:00:01]} 16. Qb3 {[%emt 0:00:14]} O-O {[%emt 0:00:03]} 17. O-O {[%emt 0:00:05]} h5 {[%emt 0:00:11]} 18. Ne5 {[%emt 0:00:35]} h4 {[%emt 0:00:01][%cal Oc6c5]} 19. Bc4 {[%emt 0:00:23]} h3 {[%emt 0:00:07]} 20. g3 {[%emt 0:00:07][%cal Bg2g3,Bg3g4][%mdl 32]} f4 $2 {[%emt 0:00:32] Black cannot hold the game after this.} (20... g4 $16) 21. Ne4 {[%emt 0:00:19] Hoping for gxf4. Excellent horsemanship.} Rf5 {[%emt 0:00:12]} (21... b5 $142) 22. exf4 $18 {[%emt 0:00:47] White has a decisive advantage.} gxf4 {[%emt 0:00:02]} 23. g4 {[%emt 0:00:07][%mdl 64] [#] Discovered Attack} Rxe5 {[%emt 0:00:26]} 24. dxe5 {[%emt 0:00:03]} Qh4 {[%emt 0:00:00]} 25. Kh1 {[%emt 0:00:35]} Bxe5 {[%emt 0:00:05][%mdl 32768] Weighted Error Value: White=0.12 (very precise) /Black=0.36. An unexpected result.} 1/2-1/2

[Event "ChessKid Cup Div-II 2023"]
[Site "Online"]
[Date "2023.05.25"]
[Round "54.3"]
[White "Mamedyarov, Shakhriyar"]
[Black "Sadhwani, Raunak"]
[Result "1-0"]
[ECO "E13"]
[WhiteElo "2738"]
[BlackElo "2627"]
[Annotator "TA"]
[PlyCount "43"]
[EventDate "2023.05.21"]
[EventType "k.o."]
[EventCountry "NET"]
[SourceTitle "playchess.com"]
[Source "ChessBase"]
[SourceQuality "1"]
[TimeControl "900+3"]

{[%evp 13,43,-6,4,4,28,10,8,0,-4,-10,12,-11,0,0,0,0,-14,-19,0,0,0,0,-13,-16,393,337,323,324,29988,29989,29993,29994]} 1. d4 {[%emt 0:00:06]} Nf6 {[%emt 0:04:41]} 2. c4 {[%emt 0:00:04]} e6 {[%emt 0:00:04]} 3. Nc3 {[%emt 0:00:04]} Bb4 {[%emt 0:00:04]} 4. Nf3 {[%emt 0:00:04]} O-O {[%emt 0:00:04]} 5. Bg5 {[%emt 0:00:04][%cal Bc1g5,Bg5h4,Bh4g3][%mdl 32]} h6 {[%emt 0:00:09]} 6. Bh4 {[%emt 0:00:05]} b6 {[%emt 0:00:06]} 7. Nd2 {[%emt 0:00:41]} Bb7 {[%emt 0:00:11] [#]} 8. e4 $1 {[%emt 0:00:05] White wants to play e5. E13: Queen's Indian/Nimzo-Indian hybrid: 4 Nc3 Bb7 5 Bg5 h6 6 Bh4 Bb4.} g5 {[%emt 0:00:10]} (8... Bxe4 $2 9. Ndxe4 g5 10. Nxf6+ Qxf6 11. Bg3 $18) (8... d6 9. f3) 9. Bg3 {[%emt 0:00:04] next e5 is good for White.} Nxe4 {[%emt 0:00:11]} 10. Ndxe4 {[%emt 0:00:21] The position is equal.} Bxe4 {[%emt 0:00:03]} 11. h4 {[%emt 0:00:04]} d6 {[%emt 0:01:10] [#]} 12. Qd2 $146 {[%emt 0:00:28]} ({Predecessor:} 12. hxg5 hxg5 13. Bd3 Bg6 14. Bxg6 fxg6 15. c5 bxc5 16. dxc5 Qf6 17. O-O Bxc3 18. bxc3 dxc5 {1-0 Chuprov,D (2548)-Denisov,I (2257) Khanty-Mansiysk Governor Cup 6th 2010 (2)}) 12... Nd7 {[%emt 0:00:14]} 13. hxg5 {[%emt 0:00:09] And now Qf4 would win.} hxg5 {[%emt 0:00:03]} 14. O-O-O {[%emt 0:00:16]} Bg6 {[%emt 0:00:29] Against Rh5} 15. f4 {[%emt 0:01:40]} Qf6 {[%emt 0:00:24]} 16. Qe3 {[%emt 0:01:07] Hoping for Ne4.} Bxc3 {[%emt 0:00:13]} (16... Qf5 $2 17. Bd3 Qg4 18. Ne4 Bxe4 19. Bxe4 $18) 17. bxc3 {[%emt 0:00:03]} Rae8 {[%emt 0:02:37]} ({Don't play} 17... Qf5 18. Bd3 Qg4 19. Be2 $16 (19. fxg5 Bxd3 20. Rxd3 Kg7 $14)) 18. fxg5 {[%emt 0:00:38]} Qf5 {[%emt 0:00:03][%mdl 8192] This move loses the game for Black.} (18... Qg7 $1 $11 {and Black stays safe.}) 19. Bd3 $18 {[%emt 0:00:05]} Qa5 {[%emt 0:00:04]} 20. Kb2 {[%emt 0:00:47]} b5 $2 {[%emt 0:00:56] [#]} (20... Kg7 $18 21. Rdf1 Qa6) 21. Be5 $1 {[%emt 0:01:00][%mdl 512]} Nxe5 {[%emt 0:00:28] [#]} (21... f5 22. gxf6) 22. Qh3 $1 {[%emt 0:00:05] Weighted Error Value: White=0.02 (flawless) /Black=0.73} 1-0